[Event "Titled Tuesday Blitz March 15 Early 2022"]
[White "Royal, Shreyas"]
[Black "Gatterer, Florian"]
[WhiteFideId "448869"]
[BlackFideId "811688"]
[WhiteElo "1986"]
[BlackElo "2218"]
[Result "1-0"]
[Round "03"]
[TimeControl "180+1"]
[Date "2022.03.15"]
[WhiteClock "0:00:13"]
[BlackClock "0:00:01"]

1. b3 {[%clk 0:02:46]}  e5 {[%clk 0:02:58]} 2. Bb2 {[%clk 0:02:46]}  Nc6 {[%clk 0:02:58]} 3. g3 {[%clk 0:02:47]}  Nf6 {[%clk 0:02:57]} 4. Bg2 {[%clk 0:02:47]}  d5 {[%clk 0:02:57]} 5. e3 {[%clk 0:02:46]}  Bd6 {[%clk 0:02:54]} 6. c4 {[%clk 0:02:45]}  d4 {[%clk 0:02:54]} 7. Ne2 {[%clk 0:02:45]}  Nb4 {[%clk 0:02:48]} 8. O-O {[%clk 0:02:36]}  Nd3 {[%clk 0:02:48]} 9. Ba3 {[%clk 0:02:37]}  Bxa3 {[%clk 0:02:41]} 10. Nxa3 {[%clk 0:02:38]}  Nb4 {[%clk 0:02:36]} 11. exd4 {[%clk 0:02:28]}  exd4 {[%clk 0:02:36]} 12. Nb5 {[%clk 0:02:27]}  c5 {[%clk 0:02:31]} 13. Nf4 {[%clk 0:02:19]}  O-O {[%clk 0:02:29]} 14. a3 {[%clk 0:02:06]}  Nc6 {[%clk 0:02:24]} 15. Nd5 {[%clk 0:02:06]}  Nxd5 {[%clk 0:02:17]} 16. cxd5 {[%clk 0:02:07]}  Ne5 {[%clk 0:02:14]} 17. f4 {[%clk 0:01:45]}  Ng6 {[%clk 0:02:10]} 18. a4 {[%clk 0:01:26]}  a6 {[%clk 0:02:09]} 19. Na3 {[%clk 0:01:26]}  Bf5 {[%clk 0:01:56]} 20. Qh5 {[%clk 0:01:22]}  Qd7 {[%clk 0:01:39]} 21. h3 {[%clk 0:01:05]}  b5 {[%clk 0:01:34]} 22. axb5 {[%clk 0:01:03]}  axb5 {[%clk 0:01:33]} 23. Nxb5 {[%clk 0:01:03]}  Bd3 {[%clk 0:01:22]} 24. Rxa8 {[%clk 0:00:50]}  Rxa8 {[%clk 0:01:21]} 25. d6 {[%clk 0:00:50]}  Rf8 {[%clk 0:01:16]} 26. Qxc5 {[%clk 0:00:31]}  Qxb5 {[%clk 0:01:02]} 27. Qxb5 {[%clk 0:00:31]}  Bxb5 {[%clk 0:01:01]} 28. Rc1 {[%clk 0:00:32]}  Rd8 {[%clk 0:00:55]} 29. Rc5 {[%clk 0:00:30]}  Bd7 {[%clk 0:00:45]} 30. b4 {[%clk 0:00:27]}  Nf8 {[%clk 0:00:43]} 31. f5 {[%clk 0:00:20]}  Rb8 {[%clk 0:00:39]} 32. Bc6 {[%clk 0:00:16]}  Bxc6 {[%clk 0:00:23]} 33. Rxc6 {[%clk 0:00:17]}  Rxb4 {[%clk 0:00:19]} 34. Rc8 {[%clk 0:00:17]}  Rb7 {[%clk 0:00:17]} 35. Rc7 {[%clk 0:00:18]}  Rb8 {[%clk 0:00:16]} 36. Kf2 {[%clk 0:00:15]}  Rd8 {[%clk 0:00:16]} 37. Rc6 {[%clk 0:00:16]}  f6 {[%clk 0:00:14]} 38. Kf3 {[%clk 0:00:16]}  Nd7 {[%clk 0:00:13]} 39. Ke4 {[%clk 0:00:16]}  Ne5 {[%clk 0:00:12]} 40. Ra6 {[%clk 0:00:16]}  d3 {[%clk 0:00:13]} 41. Kd5 {[%clk 0:00:15]}  h5 {[%clk 0:00:10]} 42. Ke6 {[%clk 0:00:13]}  Re8+ {[%clk 0:00:09]} 43. Kd5 {[%clk 0:00:14]}  Rd8 {[%clk 0:00:09]} 44. Ra7 {[%clk 0:00:14]}  Rd7 {[%clk 0:00:07]} 45. Rxd7 {[%clk 0:00:12]}  Nxd7 {[%clk 0:00:06]} 46. Kc6 {[%clk 0:00:12]}  Ne5+ {[%clk 0:00:04]} 47. Kc7 {[%clk 0:00:13]}  Kf7 {[%clk 0:00:03]} 48. d7 {[%clk 0:00:13]}  Nxd7 {[%clk 0:00:03]} 49. Kxd7 {[%clk 0:00:14]}  g6 {[%clk 0:00:03]} 50. g4 {[%clk 0:00:12]}  hxg4 {[%clk 0:00:01]} 51. hxg4 {[%clk 0:00:13]} 1-0


[Site "https://www.chess.com"]

[Event "Titled Tuesday Blitz March 15 Early 2022"]
[White "Rustemov, Alexander"]
[Black "Sarkar, Justin"]
[WhiteFideId "4119002"]
[BlackFideId "2010011"]
[WhiteElo "2753"]
[BlackElo "2038"]
[Result "1-0"]
[Round "03"]
[TimeControl "180+1"]
[Date "2022.03.15"]
[WhiteClock "0:01:17"]
[BlackClock "0:00:02"]

1. d4 {[%clk 0:02:47]}  Nf6 {[%clk 0:02:53]} 2. c4 {[%clk 0:02:46]}  g6 {[%clk 0:02:52]} 3. Nf3 {[%clk 0:02:46]}  Bg7 {[%clk 0:02:52]} 4. g3 {[%clk 0:02:47]}  O-O {[%clk 0:02:48]} 5. Bg2 {[%clk 0:02:48]}  c5 {[%clk 0:02:42]} 6. O-O {[%clk 0:02:46]}  d6 {[%clk 0:02:37]} 7. Nc3 {[%clk 0:02:45]}  Nc6 {[%clk 0:02:26]} 8. dxc5 {[%clk 0:02:45]}  dxc5 {[%clk 0:02:26]} 9. Bf4 {[%clk 0:02:46]}  Be6 {[%clk 0:02:23]} 10. Ne5 {[%clk 0:02:45]}  Nxe5 {[%clk 0:02:18]} 11. Bxe5 {[%clk 0:02:45]}  Qb6 {[%clk 0:02:05]} 12. Qb3 {[%clk 0:02:45]}  Nd7 {[%clk 0:01:03]} 13. Bxg7 {[%clk 0:02:33]}  Kxg7 {[%clk 0:01:04]} 14. Qxb6 {[%clk 0:02:21]}  Nxb6 {[%clk 0:01:01]} 15. b3 {[%clk 0:02:21]}  Rab8 {[%clk 0:00:51]} 16. Rfd1 {[%clk 0:02:16]}  Nc8 {[%clk 0:00:44]} 17. Rd2 {[%clk 0:01:48]}  Nd6 {[%clk 0:00:39]} 18. Rad1 {[%clk 0:01:48]}  b5 {[%clk 0:00:33]} 19. cxb5 {[%clk 0:01:46]}  Nxb5 {[%clk 0:00:33]} 20. Nxb5 {[%clk 0:01:36]}  Rxb5 {[%clk 0:00:34]} 21. Bd5 {[%clk 0:01:31]}  Bxd5 {[%clk 0:00:06]} 22. Rxd5 {[%clk 0:01:32]}  a5 {[%clk 0:00:06]} 23. Rc1 {[%clk 0:01:27]}  a4 {[%clk 0:00:06]} 24. Rdxc5 {[%clk 0:01:25]}  Rxc5 {[%clk 0:00:05]} 25. Rxc5 {[%clk 0:01:25]}  axb3 {[%clk 0:00:05]} 26. axb3 {[%clk 0:01:25]}  Rb8 {[%clk 0:00:06]} 27. Rc3 {[%clk 0:01:23]}  e5 {[%clk 0:00:05]} 28. Kf1 {[%clk 0:01:20]}  Ra8 {[%clk 0:00:02]} 29. Ke1 {[%clk 0:01:17]} 1-0


[Site "https://www.chess.com"]

[Event "Titled Tuesday Blitz March 15 Early 2022"]
[White "Samaganova, Aleksandra"]
[Black "Coto Mederos, Michel"]
[WhiteFideId "13800221"]
[BlackFideId "3508528"]
[WhiteElo "1859"]
[BlackElo "2427"]
[Result "0-1"]
[Round "03"]
[TimeControl "180+1"]
[Date "2022.03.15"]
[WhiteClock "0:00:02"]
[BlackClock "0:00:06"]

1. c4 {[%clk 0:02:58]}  e6 {[%clk 0:02:56]} 2. Nc3 {[%clk 0:02:57]}  d5 {[%clk 0:02:56]} 3. e3 {[%clk 0:02:57]}  Nf6 {[%clk 0:02:55]} 4. Nf3 {[%clk 0:02:57]}  Be7 {[%clk 0:02:55]} 5. d4 {[%clk 0:02:57]}  O-O {[%clk 0:02:50]} 6. cxd5 {[%clk 0:02:56]}  exd5 {[%clk 0:02:48]} 7. Bd3 {[%clk 0:02:56]}  c6 {[%clk 0:02:46]} 8. h3 {[%clk 0:02:55]}  Re8 {[%clk 0:02:42]} 9. O-O {[%clk 0:02:54]}  Nbd7 {[%clk 0:02:40]} 10. a3 {[%clk 0:02:53]}  Nf8 {[%clk 0:02:37]} 11. b4 {[%clk 0:02:50]}  Ng6 {[%clk 0:02:26]} 12. b5 {[%clk 0:02:44]}  c5 {[%clk 0:02:20]} 13. dxc5 {[%clk 0:02:39]}  Bxc5 {[%clk 0:02:20]} 14. Bb2 {[%clk 0:02:32]}  Be6 {[%clk 0:02:03]} 15. Ne2 {[%clk 0:02:23]}  Rc8 {[%clk 0:01:56]} 16. Ned4 {[%clk 0:02:16]}  Ne4 {[%clk 0:01:54]} 17. Rc1 {[%clk 0:02:08]}  Qd7 {[%clk 0:01:43]} 18. Nxe6 {[%clk 0:02:01]}  Qxe6 {[%clk 0:01:23]} 19. Bxe4 {[%clk 0:01:47]}  dxe4 {[%clk 0:00:47]} 20. Nd4 {[%clk 0:01:45]}  Qd7 {[%clk 0:00:29]} 21. Qb3 {[%clk 0:01:41]}  Ne5 {[%clk 0:00:26]} 22. Rc2 {[%clk 0:01:05]}  Nd3 {[%clk 0:00:26]} 23. a4 {[%clk 0:00:52]}  Re5 {[%clk 0:00:20]} 24. Nc6 {[%clk 0:00:28]}  Rg5 {[%clk 0:00:17]} 25. Kh2 {[%clk 0:00:08]}  bxc6 {[%clk 0:00:17]} 26. bxc6 {[%clk 0:00:08]}  Qxc6 {[%clk 0:00:16]} 27. Bd4 {[%clk 0:00:07]}  Qd6+ {[%clk 0:00:15]} 28. Kh1 {[%clk 0:00:07]}  Rb8 {[%clk 0:00:12]} 29. Qc4 {[%clk 0:00:04]}  Bxd4 {[%clk 0:00:11]} 30. exd4 {[%clk 0:00:04]}  h6 {[%clk 0:00:10]} 31. Rd2 {[%clk 0:00:02]}  Qf4 {[%clk 0:00:08]} 32. Qc6 {[%clk 0:00:02]}  Qxd2 {[%clk 0:00:06]} 0-1


[Site "https://www.chess.com"]

[Event "Titled Tuesday Blitz March 15 Early 2022"]
[White "Samunenkov, Ihor"]
[Black "Slugin, Sergey"]
[WhiteFideId "14187086"]
[BlackFideId "4122569"]
[WhiteElo "2409"]
[BlackElo "2358"]
[Result "1/2-1/2"]
[Round "03"]
[TimeControl "180+1"]
[Date "2022.03.15"]
[WhiteClock "0:00:03"]
[BlackClock "0:00:04"]

1. e4 {[%clk 0:03:00]}  c5 {[%clk 0:02:57]} 2. Nf3 {[%clk 0:03:01]}  e6 {[%clk 0:02:57]} 3. d4 {[%clk 0:03:01]}  cxd4 {[%clk 0:02:58]} 4. Nxd4 {[%clk 0:03:02]}  Nc6 {[%clk 0:02:58]} 5. Nc3 {[%clk 0:03:02]}  Qc7 {[%clk 0:02:58]} 6. Qd3 {[%clk 0:03:01]}  a6 {[%clk 0:02:56]} 7. Nxc6 {[%clk 0:03:00]}  bxc6 {[%clk 0:02:56]} 8. Qg3 {[%clk 0:03:00]}  Qxg3 {[%clk 0:02:50]} 9. hxg3 {[%clk 0:03:01]}  d5 {[%clk 0:02:50]} 10. g4 {[%clk 0:03:01]}  Nf6 {[%clk 0:02:45]} 11. g5 {[%clk 0:03:00]}  Nxe4 {[%clk 0:02:43]} 12. Nxe4 {[%clk 0:03:00]}  dxe4 {[%clk 0:02:44]} 13. Rh4 {[%clk 0:03:01]}  Bb7 {[%clk 0:02:40]} 14. Rxe4 {[%clk 0:02:59]}  c5 {[%clk 0:02:40]} 15. Ra4 {[%clk 0:02:52]}  Be7 {[%clk 0:02:40]} 16. Be3 {[%clk 0:02:47]}  O-O {[%clk 0:02:39]} 17. O-O-O {[%clk 0:02:39]}  Bd5 {[%clk 0:02:35]} 18. Ra5 {[%clk 0:02:21]}  Rfc8 {[%clk 0:02:24]} 19. c4 {[%clk 0:01:51]}  Bd8 {[%clk 0:02:16]} 20. Ra3 {[%clk 0:01:45]}  Bc6 {[%clk 0:02:12]} 21. f4 {[%clk 0:01:40]}  Be7 {[%clk 0:01:53]} 22. Ra5 {[%clk 0:01:28]}  Be4 {[%clk 0:01:49]} 23. Rd7 {[%clk 0:01:17]}  Kf8 {[%clk 0:01:49]} 24. g3 {[%clk 0:01:13]}  Ke8 {[%clk 0:01:47]} 25. Rd2 {[%clk 0:01:13]}  Rc6 {[%clk 0:01:42]} 26. Bd3 {[%clk 0:01:10]}  Bxd3 {[%clk 0:01:39]} 27. Rxd3 {[%clk 0:01:11]}  Rac8 {[%clk 0:01:38]} 28. Kc2 {[%clk 0:01:08]}  Bd8 {[%clk 0:01:35]} 29. Ra4 {[%clk 0:01:06]}  Bc7 {[%clk 0:01:32]} 30. Raa3 {[%clk 0:00:51]}  f6 {[%clk 0:01:29]} 31. gxf6 {[%clk 0:00:50]}  gxf6 {[%clk 0:01:30]} 32. Rab3 {[%clk 0:00:51]}  Rb8 {[%clk 0:01:25]} 33. Rxb8+ {[%clk 0:00:43]}  Bxb8 {[%clk 0:01:26]} 34. a3 {[%clk 0:00:34]}  f5 {[%clk 0:01:24]} 35. Rd1 {[%clk 0:00:23]}  Kf7 {[%clk 0:01:17]} 36. Rd7+ {[%clk 0:00:22]}  Kg6 {[%clk 0:01:16]} 37. Kd3 {[%clk 0:00:22]}  Rd6+ {[%clk 0:01:05]} 38. Rxd6 {[%clk 0:00:21]}  Bxd6 {[%clk 0:01:06]} 39. b4 {[%clk 0:00:17]}  cxb4 {[%clk 0:00:49]} 40. c5 {[%clk 0:00:17]}  Bc7 {[%clk 0:00:48]} 41. axb4 {[%clk 0:00:17]}  Kh5 {[%clk 0:00:47]} 42. Bd4 {[%clk 0:00:14]}  Kg4 {[%clk 0:00:39]} 43. Be5 {[%clk 0:00:14]}  Bd8 {[%clk 0:00:39]} 44. c6 {[%clk 0:00:08]}  Kxg3 {[%clk 0:00:39]} 45. c7 {[%clk 0:00:08]}  Bxc7 {[%clk 0:00:39]} 46. Bxc7 {[%clk 0:00:09]}  h5 {[%clk 0:00:39]} 47. Ke2 {[%clk 0:00:06]}  h4 {[%clk 0:00:36]} 48. Kf1 {[%clk 0:00:06]}  h3 {[%clk 0:00:19]} 49. Kg1 {[%clk 0:00:06]}  h2+ {[%clk 0:00:19]} 50. Kh1 {[%clk 0:00:06]}  Kh3 {[%clk 0:00:18]} 51. Bd6 {[%clk 0:00:04]}  Kg3 {[%clk 0:00:18]} 52. Bb8 {[%clk 0:00:05]}  Kh3 {[%clk 0:00:19]} 53. Ba7 {[%clk 0:00:05]}  Kg3 {[%clk 0:00:19]} 54. Be3 {[%clk 0:00:05]}  Kf3 {[%clk 0:00:17]} 55. Bd2 {[%clk 0:00:04]}  Kg3 {[%clk 0:00:14]} 56. Bc1 {[%clk 0:00:03]}  Kh3 {[%clk 0:00:13]} 57. Bb2 {[%clk 0:00:02]}  Kg3 {[%clk 0:00:14]} 58. Be5 {[%clk 0:00:03]}  Kh3 {[%clk 0:00:14]} 59. Bf6 {[%clk 0:00:03]}  Kg3 {[%clk 0:00:15]} 60. Bg5 {[%clk 0:00:04]}  Kh3 {[%clk 0:00:15]} 61. Bd8 {[%clk 0:00:03]}  Kg3 {[%clk 0:00:15]} 62. Bc7 {[%clk 0:00:03]}  Kh3 {[%clk 0:00:15]} 63. Bb6 {[%clk 0:00:03]}  Kg3 {[%clk 0:00:15]} 64. Be3 {[%clk 0:00:03]}  Kh3 {[%clk 0:00:16]} 65. Bf2 {[%clk 0:00:03]}  Kg4 {[%clk 0:00:15]} 66. Kxh2 {[%clk 0:00:04]}  Kxf4 {[%clk 0:00:15]} 67. Kg2 {[%clk 0:00:04]}  Ke4 {[%clk 0:00:14]} 68. Bb6 {[%clk 0:00:04]}  f4 {[%clk 0:00:13]} 69. Kf2 {[%clk 0:00:04]}  e5 {[%clk 0:00:11]} 70. Bc7 {[%clk 0:00:03]}  Kd4 {[%clk 0:00:11]} 71. Kf3 {[%clk 0:00:03]}  Kc4 {[%clk 0:00:10]} 72. Ba5 {[%clk 0:00:02]}  Kd3 {[%clk 0:00:09]} 73. Bb6 {[%clk 0:00:02]}  Kc4 {[%clk 0:00:07]} 74. Ba5 {[%clk 0:00:02]}  Kd3 {[%clk 0:00:07]} 75. Bc7 {[%clk 0:00:02]}  Kc4 {[%clk 0:00:04]} 76. Ba5 {[%clk 0:00:03]} 1/2-1/2


[Site "https://www.chess.com"]

[Event "Titled Tuesday Blitz March 15 Early 2022"]
[White "Santos Ruiz, Miguel"]
[Black "Bok, Benjamin"]
[WhiteFideId "22291482"]
[BlackFideId "1017063"]
[WhiteElo "2486"]
[BlackElo "2658"]
[Result "0-1"]
[Round "03"]
[TimeControl "180+1"]
[Date "2022.03.15"]
[WhiteClock "0:00:07"]
[BlackClock "0:00:06"]

1. e4 {[%clk 0:03:00]}  c5 {[%clk 0:02:58]} 2. Nf3 {[%clk 0:03:00]}  d6 {[%clk 0:02:58]} 3. d4 {[%clk 0:03:01]}  cxd4 {[%clk 0:02:59]} 4. Nxd4 {[%clk 0:03:02]}  Nf6 {[%clk 0:02:59]} 5. Nc3 {[%clk 0:03:02]}  a6 {[%clk 0:03:00]} 6. Be2 {[%clk 0:03:02]}  e5 {[%clk 0:03:00]} 7. Nb3 {[%clk 0:03:02]}  Be7 {[%clk 0:02:59]} 8. Be3 {[%clk 0:03:01]}  Be6 {[%clk 0:02:59]} 9. Nd5 {[%clk 0:03:00]}  Nbd7 {[%clk 0:02:57]} 10. Qd3 {[%clk 0:02:59]}  O-O {[%clk 0:02:53]} 11. O-O {[%clk 0:02:58]}  Bxd5 {[%clk 0:02:52]} 12. exd5 {[%clk 0:02:59]}  Rc8 {[%clk 0:02:53]} 13. c4 {[%clk 0:02:58]}  a5 {[%clk 0:02:51]} 14. Rae1 {[%clk 0:02:58]}  Re8 {[%clk 0:02:41]} 15. Qd2 {[%clk 0:02:25]}  b6 {[%clk 0:02:37]} 16. Kh1 {[%clk 0:02:05]}  Ne4 {[%clk 0:02:37]} 17. Qc2 {[%clk 0:02:04]}  Nec5 {[%clk 0:02:37]} 18. Nxc5 {[%clk 0:02:01]}  Nxc5 {[%clk 0:02:36]} 19. Bg4 {[%clk 0:01:56]}  Rb8 {[%clk 0:02:27]} 20. f4 {[%clk 0:01:55]}  Bf6 {[%clk 0:02:20]} 21. b3 {[%clk 0:01:39]}  Rb7 {[%clk 0:01:28]} 22. a3 {[%clk 0:00:50]}  exf4 {[%clk 0:01:23]} 23. Bxf4 {[%clk 0:00:47]}  Rxe1 {[%clk 0:01:23]} 24. Rxe1 {[%clk 0:00:47]}  Re7 {[%clk 0:01:24]} 25. Rxe7 {[%clk 0:00:39]}  Qxe7 {[%clk 0:01:25]} 26. Bg3 {[%clk 0:00:35]}  Qe3 {[%clk 0:01:14]} 27. b4 {[%clk 0:00:33]}  Ne4 {[%clk 0:01:07]} 28. Qe2 {[%clk 0:00:19]}  Nxg3+ {[%clk 0:00:48]} 29. hxg3 {[%clk 0:00:18]}  Qc1+ {[%clk 0:00:47]} 30. Kh2 {[%clk 0:00:18]}  g6 {[%clk 0:00:46]} 31. c5 {[%clk 0:00:12]}  dxc5 {[%clk 0:00:35]} 32. bxa5 {[%clk 0:00:10]}  bxa5 {[%clk 0:00:35]} 33. d6 {[%clk 0:00:10]}  Kg7 {[%clk 0:00:29]} 34. d7 {[%clk 0:00:07]}  c4 {[%clk 0:00:20]} 35. Qf2 {[%clk 0:00:01]}  Qg5 {[%clk 0:00:17]} 36. Qb6 {[%clk 0:00:01]}  Qxg4 {[%clk 0:00:10]} 37. Qxf6+ {[%clk 0:00:02]}  Kxf6 {[%clk 0:00:11]} 38. d8=Q+ {[%clk 0:00:02]}  Kg7 {[%clk 0:00:12]} 39. Qc7 {[%clk 0:00:03]}  Qh5+ {[%clk 0:00:10]} 40. Kg1 {[%clk 0:00:03]}  Qd5 {[%clk 0:00:10]} 41. Kh2 {[%clk 0:00:04]}  a4 {[%clk 0:00:09]} 42. Qb6 {[%clk 0:00:04]}  Qe5 {[%clk 0:00:08]} 43. Qc6 {[%clk 0:00:04]}  c3 {[%clk 0:00:08]} 44. Qc4 {[%clk 0:00:04]}  Qh5+ {[%clk 0:00:07]} 45. Kg1 {[%clk 0:00:05]}  Qd1+ {[%clk 0:00:06]} 46. Kh2 {[%clk 0:00:06]}  Qd2 {[%clk 0:00:06]} 47. Qxc3+ {[%clk 0:00:07]}  Qxc3 {[%clk 0:00:06]} 0-1


[Site "https://www.chess.com"]

[Event "Titled Tuesday Blitz March 15 Early 2022"]
[White "Skliarov, Viktor"]
[Black "Chen, Justin"]
[WhiteFideId "14106736"]
[BlackFideId "2098199"]
[WhiteElo "2229"]
[BlackElo "2437"]
[Result "1-0"]
[Round "03"]
[TimeControl "180+1"]
[Date "2022.03.15"]
[WhiteClock "0:00:21"]
[BlackClock "0:00:01"]

1. e4 {[%clk 0:03:00]}  e6 {[%clk 0:02:55]} 2. d4 {[%clk 0:03:00]}  d5 {[%clk 0:02:56]} 3. e5 {[%clk 0:03:01]}  c5 {[%clk 0:02:56]} 4. c3 {[%clk 0:03:01]}  Qb6 {[%clk 0:02:56]} 5. Nf3 {[%clk 0:03:02]}  Nc6 {[%clk 0:02:57]} 6. a3 {[%clk 0:03:02]}  c4 {[%clk 0:02:56]} 7. Nbd2 {[%clk 0:03:02]}  Bd7 {[%clk 0:02:56]} 8. g3 {[%clk 0:03:03]}  Na5 {[%clk 0:02:53]} 9. h4 {[%clk 0:03:03]}  Ne7 {[%clk 0:02:54]} 10. Bh3 {[%clk 0:03:03]}  O-O-O {[%clk 0:02:48]} 11. O-O {[%clk 0:03:02]}  h6 {[%clk 0:02:48]} 12. h5 {[%clk 0:03:02]}  Kb8 {[%clk 0:02:41]} 13. Nh4 {[%clk 0:03:01]}  Nc8 {[%clk 0:02:09]} 14. f4 {[%clk 0:03:01]}  Be7 {[%clk 0:02:09]} 15. Ndf3 {[%clk 0:03:01]}  f5 {[%clk 0:01:38]} 16. exf6 {[%clk 0:02:54]}  gxf6 {[%clk 0:01:38]} 17. Ng6 {[%clk 0:02:18]}  Rhg8 {[%clk 0:01:36]} 18. f5 {[%clk 0:02:19]}  e5 {[%clk 0:01:34]} 19. Be3 {[%clk 0:02:16]}  Qxb2 {[%clk 0:01:16]} 20. dxe5 {[%clk 0:02:13]}  Nb3 {[%clk 0:01:05]} 21. Rb1 {[%clk 0:01:11]}  Qxc3 {[%clk 0:01:05]} 22. Bf4 {[%clk 0:01:11]}  Ka8 {[%clk 0:00:59]} 23. Kh2 {[%clk 0:01:01]}  d4 {[%clk 0:00:55]} 24. Nxe7 {[%clk 0:00:42]}  Nxe7 {[%clk 0:00:53]} 25. exf6 {[%clk 0:00:43]}  Nd5 {[%clk 0:00:51]} 26. Be5 {[%clk 0:00:41]}  Ne3 {[%clk 0:00:46]} 27. Bxd4 {[%clk 0:00:39]}  Nxd1 {[%clk 0:00:40]} 28. Bxc3 {[%clk 0:00:38]}  Nxc3 {[%clk 0:00:40]} 29. Rbe1 {[%clk 0:00:37]}  Rgf8 {[%clk 0:00:25]} 30. Ne5 {[%clk 0:00:32]}  Bb5 {[%clk 0:00:18]} 31. f7 {[%clk 0:00:30]}  Nd5 {[%clk 0:00:04]} 32. Bg2 {[%clk 0:00:23]}  a6 {[%clk 0:00:01]} 33. a4 {[%clk 0:00:21]} 1-0


[Site "https://www.chess.com"]

[Event "Titled Tuesday Blitz March 15 Early 2022"]
[White "Szpar, Milosz"]
[Black "Shevchenko, Kirill"]
[WhiteFideId "1184989"]
[BlackFideId "14129574"]
[WhiteElo "2447"]
[BlackElo "2624"]
[Result "0-1"]
[Round "03"]
[TimeControl "180+1"]
[Date "2022.03.15"]
[WhiteClock "0:00:06"]
[BlackClock "0:00:26"]

1. e4 {[%clk 0:02:52]}  c5 {[%clk 0:02:56]} 2. Nf3 {[%clk 0:02:50]}  d6 {[%clk 0:02:57]} 3. c3 {[%clk 0:02:47]}  Nf6 {[%clk 0:02:57]} 4. h3 {[%clk 0:02:47]}  Bd7 {[%clk 0:02:56]} 5. Bd3 {[%clk 0:02:47]}  Bc6 {[%clk 0:02:56]} 6. Qe2 {[%clk 0:02:47]}  Nh5 {[%clk 0:02:56]} 7. Qe3 {[%clk 0:02:40]}  e5 {[%clk 0:02:47]} 8. Bc2 {[%clk 0:02:39]}  Nf4 {[%clk 0:02:44]} 9. O-O {[%clk 0:02:39]}  g6 {[%clk 0:02:30]} 10. d4 {[%clk 0:02:39]}  cxd4 {[%clk 0:02:29]} 11. cxd4 {[%clk 0:02:39]}  Bg7 {[%clk 0:02:28]} 12. Rd1 {[%clk 0:02:30]}  Qf6 {[%clk 0:01:40]} 13. dxe5 {[%clk 0:02:07]}  dxe5 {[%clk 0:01:39]} 14. Bd2 {[%clk 0:01:54]}  O-O {[%clk 0:01:22]} 15. Bc3 {[%clk 0:01:55]}  Nd7 {[%clk 0:01:20]} 16. Nbd2 {[%clk 0:01:05]}  Bb5 {[%clk 0:01:08]} 17. Re1 {[%clk 0:00:54]}  Bh6 {[%clk 0:01:02]} 18. Kh2 {[%clk 0:00:49]}  Rac8 {[%clk 0:00:51]} 19. Qxa7 {[%clk 0:00:44]}  b6 {[%clk 0:00:35]} 20. Qa3 {[%clk 0:00:37]}  Rfd8 {[%clk 0:00:33]} 21. Qb4 {[%clk 0:00:36]}  Bd3 {[%clk 0:00:32]} 22. Bb3 {[%clk 0:00:33]}  Bf8 {[%clk 0:00:27]} 23. Qa4 {[%clk 0:00:15]}  Ra8 {[%clk 0:00:27]} 24. Qxa8 {[%clk 0:00:14]}  Rxa8 {[%clk 0:00:27]} 25. Rac1 {[%clk 0:00:10]}  Bc5 {[%clk 0:00:27]} 26. Re3 {[%clk 0:00:06]}  Re8 {[%clk 0:00:26]} 27. Rce1 {[%clk 0:00:05]}  Bxe3 {[%clk 0:00:26]} 28. Rxe3 {[%clk 0:00:06]}  Bb5 {[%clk 0:00:26]} 29. a4 {[%clk 0:00:06]}  Ba6 {[%clk 0:00:26]} 30. g3 {[%clk 0:00:06]}  Ne2 {[%clk 0:00:26]} 31. Bb4 {[%clk 0:00:06]}  Nd4 {[%clk 0:00:26]} 0-1


[Site "https://www.chess.com"]

[Event "Titled Tuesday Blitz March 15 Early 2022"]
[White "Tomb, Maroun"]
[Black "Skuhala, Barbara"]
[WhiteFideId "5300398"]
[BlackFideId "14605465"]
[WhiteElo "2534"]
[BlackElo "2155"]
[Result "0-1"]
[Round "03"]
[TimeControl "180+1"]
[Date "2022.03.15"]
[WhiteClock "0:00:01"]
[BlackClock "0:01:57"]

1. d4 {[%clk 0:03:00]}  Nf6 {[%clk 0:02:58]} 2. Nc3 {[%clk 0:03:00]}  d5 {[%clk 0:02:57]} 3. Bg5 {[%clk 0:03:00]}  e6 {[%clk 0:02:57]} 4. e4 {[%clk 0:02:57]}  dxe4 {[%clk 0:02:56]} 5. Nxe4 {[%clk 0:02:57]}  Be7 {[%clk 0:02:56]} 6. Bxf6 {[%clk 0:02:57]}  Bxf6 {[%clk 0:02:57]} 7. Nf3 {[%clk 0:02:58]}  O-O {[%clk 0:02:57]} 8. Bd3 {[%clk 0:02:58]}  b6 {[%clk 0:02:57]} 9. Qe2 {[%clk 0:02:59]}  Bb7 {[%clk 0:02:55]} 10. O-O-O {[%clk 0:02:59]}  Nd7 {[%clk 0:02:55]} 11. g4 {[%clk 0:02:58]}  Be7 {[%clk 0:02:54]} 12. h4 {[%clk 0:02:57]}  Rc8 {[%clk 0:02:54]} 13. Kb1 {[%clk 0:02:56]}  Qe8 {[%clk 0:02:52]} 14. Neg5 {[%clk 0:02:52]}  Nf6 {[%clk 0:02:52]} 15. Ne5 {[%clk 0:02:40]}  Bxh1 {[%clk 0:02:50]} 16. Rxh1 {[%clk 0:02:41]}  c5 {[%clk 0:02:50]} 17. dxc5 {[%clk 0:02:31]}  Rxc5 {[%clk 0:02:49]} 18. f4 {[%clk 0:02:30]}  Qc6 {[%clk 0:02:46]} 19. Re1 {[%clk 0:02:16]}  Qc7 {[%clk 0:02:45]} 20. Nexf7 {[%clk 0:02:07]}  Rxf7 {[%clk 0:02:23]} 21. Qxe6 {[%clk 0:01:59]}  Bf8 {[%clk 0:02:23]} 22. h5 {[%clk 0:01:07]}  Qd7 {[%clk 0:02:22]} 23. Qb3 {[%clk 0:01:01]}  Qd5 {[%clk 0:02:18]} 24. Qxd5 {[%clk 0:00:55]}  Nxd5 {[%clk 0:02:16]} 25. Bxh7+ {[%clk 0:00:52]}  Kh8 {[%clk 0:02:15]} 26. Nxf7+ {[%clk 0:00:45]}  Kxh7 {[%clk 0:02:15]} 27. g5 {[%clk 0:00:40]}  g6 {[%clk 0:02:05]} 28. hxg6+ {[%clk 0:00:24]}  Kxg6 {[%clk 0:02:04]} 29. Ne5+ {[%clk 0:00:15]}  Kf5 {[%clk 0:02:04]} 30. Nd3 {[%clk 0:00:16]}  Ra5 {[%clk 0:02:02]} 31. Re5+ {[%clk 0:00:12]}  Kg4 {[%clk 0:02:01]} 32. Re8 {[%clk 0:00:01]}  Be7 {[%clk 0:01:58]} 33. g6 {[%clk 0:00:01]}  Bf6 {[%clk 0:01:57]} 0-1


[Site "https://www.chess.com"]